[Event "*** SCC Grand Prix: Titled Tuesday Blitz"]
[Site "Chess.com"]
[Date "2020.10.06"]
[Round "5"]
[White "Kira170"]
[Black "Beca95"]
[Result "0-1"]
[WhiteElo "2791"]
[BlackElo "2906"]
[TimeControl "180+1"]
[EndTime "10:58:02 PDT"]
[Termination "Beca95 won on time"]

1. d4 {[%clk 0:03:00.1]} 1... Nf6 {[%clk 0:03:00]} 2. Nc3 {[%clk 0:03:00.1]}
2... d5 {[%clk 0:02:59.5]} 3. Bf4 {[%clk 0:03:00.3]} 3... a6 {[%clk 0:02:59.9]}
4. e3 {[%clk 0:03:00.5]} 4... c5 {[%clk 0:03:00.3]} 5. Nf3 {[%clk 0:03:00.5]}
5... cxd4 {[%clk 0:02:58.7]} 6. exd4 {[%clk 0:03:00.7]} 6... Bg4 {[%clk
0:02:58.3]} 7. h3 {[%clk 0:02:58.9]} 7... Bxf3 {[%clk 0:02:57.8]} 8. Qxf3 {[%clk
0:02:59.8]} 8... Nc6 {[%clk 0:02:57.4]} 9. O-O-O {[%clk 0:02:59.4]} 9... e6
{[%clk 0:02:57.8]} 10. g4 {[%clk 0:02:59.3]} 10... Bd6 {[%clk 0:02:57.6]} 11. g5
{[%clk 0:02:57.1]} 11... Bxf4+ {[%clk 0:02:54.5]} 12. Qxf4 {[%clk 0:02:58]}
12... Nd7 {[%clk 0:02:51.8]} 13. h4 {[%clk 0:02:58]} 13... Nb6 {[%clk
0:02:46.1]} 14. h5 {[%clk 0:02:56.2]} 14... Rc8 {[%clk 0:02:39.8]} 15. Kb1
{[%clk 0:02:56]} 15... Ne7 {[%clk 0:02:36.4]} 16. Bd3 {[%clk 0:02:52.7]} 16...
Rxc3 {[%clk 0:02:33.2]} 17. bxc3 {[%clk 0:02:52]} 17... Na4 {[%clk 0:02:33.4]}
18. Ka1 {[%clk 0:02:46.2]} 18... Qc8 {[%clk 0:02:29.8]} 19. Qd2 {[%clk 0:02:42]}
19... Nxc3 {[%clk 0:02:24.8]} 20. Rdg1 {[%clk 0:02:40.6]} 20... Qc7 {[%clk
0:02:23.2]} 21. Rh3 {[%clk 0:02:30.5]} 21... b5 {[%clk 0:02:16.3]} 22. h6 {[%clk
0:01:19.4]} 22... g6 {[%clk 0:02:03]} 23. Bxg6 {[%clk 0:01:19.2]} 23... b4
{[%clk 0:02:01.5]} 24. Bh5 {[%clk 0:01:19.7]} 24... O-O {[%clk 0:01:48.6]} 25.
Rxc3 {[%clk 0:01:12.3]} 25... bxc3 {[%clk 0:01:47.2]} 26. Qd3 {[%clk 0:01:12.4]}
26... Rb8 {[%clk 0:01:45.3]} 27. Bxf7+ {[%clk 0:01:11.9]} 27... Kxf7 {[%clk
0:01:44.2]} 28. Qxh7+ {[%clk 0:01:12]} 28... Ke8 {[%clk 0:01:44.2]} 29. Qd3
{[%clk 0:00:49.8]} 29... Rb2 {[%clk 0:01:22.6]} 30. Qxa6 {[%clk 0:00:30.4]}
30... Kf7 {[%clk 0:01:10.1]} 31. h7 {[%clk 0:00:27.7]} 31... Ng6 {[%clk
0:01:01.9]} 32. Qa3 {[%clk 0:00:24.1]} 32... Rxc2 {[%clk 0:00:57.2]} 33. Rh1
{[%clk 0:00:19.3]} 33... Kg7 {[%clk 0:00:57.1]} 34. h8=Q+ {[%clk 0:00:09.8]}
34... Nxh8 {[%clk 0:00:56.2]} 35. Rxh8 {[%clk 0:00:10.7]} 35... Rxf2 {[%clk
0:00:53.8]} 36. Rh1 {[%clk 0:00:06.5]} 36... c2 {[%clk 0:00:53.8]} 37. Rc1
{[%clk 0:00:04.8]} 37... Rd2 {[%clk 0:00:51.5]} 38. Qb2 {[%clk 0:00:05.3]} 38...
Kg6 {[%clk 0:00:49.8]} 39. Qb4 {[%clk 0:00:04.3]} 39... Rd1 {[%clk 0:00:48.6]}
40. Qa3 {[%clk 0:00:02.8]} 40... Qc4 {[%clk 0:00:47.3]} 41. Kb2 {[%clk
0:00:02.8]} 41... Qxd4+ {[%clk 0:00:36.7]} 42. Kxc2 {[%clk 0:00:03.7]} 42...
Qd2+ {[%clk 0:00:36.6]} 43. Kb1 {[%clk 0:00:03.8]} 43... Rxc1+ {[%clk
0:00:14.7]} 44. Qxc1 {[%clk 0:00:04.7]} 44... Qb4+ {[%clk 0:00:14.6]} 45. Qb2
{[%clk 0:00:05.2]} 45... Qe1+ {[%clk 0:00:14]} 46. Qc1 {[%clk 0:00:05.5]} 46...
Qe5 {[%clk 0:00:13.4]} 47. a4 {[%clk 0:00:04.8]} 47... d4 {[%clk 0:00:13.4]} 48.
Ka2 {[%clk 0:00:04.6]} 48... Qd5+ {[%clk 0:00:13.4]} 49. Ka3 {[%clk 0:00:04.8]}
49... e5 {[%clk 0:00:13.9]} 50. Kb4 {[%clk 0:00:05.2]} 50... e4 {[%clk
0:00:14.1]} 51. a5 {[%clk 0:00:05.8]} 51... Qb7+ {[%clk 0:00:12.9]} 52. Ka4
{[%clk 0:00:05.8]} 52... d3 {[%clk 0:00:13.1]} 53. Qf4 {[%clk 0:00:05.2]} 53...
Qd7+ {[%clk 0:00:12.8]} 54. Kb4 {[%clk 0:00:05.1]} 54... d2 {[%clk 0:00:13.3]}
55. Qf6+ {[%clk 0:00:05.3]} 55... Kh5 {[%clk 0:00:13.5]} 56. Qh6+ {[%clk
0:00:05.4]} 56... Kg4 {[%clk 0:00:13.9]} 0-1

[Event "*** SCC Grand Prix: Titled Tuesday Blitz"]
[Site "Chess.com"]
[Date "2020.10.06"]
[Round "5"]
[White "Mikhail_Golubev"]
[Black "slavenok"]
[Result "0-1"]
[WhiteElo "2513"]
[BlackElo "2730"]
[TimeControl "180+1"]
[EndTime "10:58:02 PDT"]
[Termination "slavenok won on time"]

1. e4 {[%clk 0:03:00.9]} 1... c5 {[%clk 0:02:59.6]} 2. Nf3 {[%clk 0:03:00]} 2...
a6 {[%clk 0:03:00]} 3. Nc3 {[%clk 0:02:55]} 3... e6 {[%clk 0:02:59.3]} 4. d4
{[%clk 0:02:54.6]} 4... cxd4 {[%clk 0:03:00.2]} 5. Nxd4 {[%clk 0:02:54.8]} 5...
d5 {[%clk 0:02:53.2]} 6. exd5 {[%clk 0:02:51.2]} 6... exd5 {[%clk 0:02:54.1]} 7.
Be2 {[%clk 0:02:42.2]} 7... Nf6 {[%clk 0:02:54.4]} 8. O-O {[%clk 0:02:42.1]}
8... Be7 {[%clk 0:02:53.9]} 9. Bf3 {[%clk 0:02:34.1]} 9... O-O {[%clk
0:02:52.3]} 10. Re1 {[%clk 0:02:33.7]} 10... Nc6 {[%clk 0:02:48.3]} 11. Bg5
{[%clk 0:02:31.2]} 11... h6 {[%clk 0:02:44.7]} 12. Bh4 {[%clk 0:02:23]} 12...
Re8 {[%clk 0:02:27]} 13. Bxf6 {[%clk 0:02:02.2]} 13... Bxf6 {[%clk 0:02:27.9]}
14. Rxe8+ {[%clk 0:02:01.2]} 14... Qxe8 {[%clk 0:02:27.1]} 15. Nxd5 {[%clk
0:01:58.9]} 15... Be5 {[%clk 0:02:17.2]} 16. c3 {[%clk 0:01:28.2]} 16... Bd7
{[%clk 0:02:14.5]} 17. Nb6 {[%clk 0:01:20.9]} 17... Rd8 {[%clk 0:02:09.7]} 18.
Nxd7 {[%clk 0:01:20]} 18... Rxd7 {[%clk 0:02:04.6]} 19. Bxc6 {[%clk 0:01:17.2]}
19... bxc6 {[%clk 0:02:02.2]} 20. Qe2 {[%clk 0:01:08.2]} 20... c5 {[%clk
0:01:59.5]} 21. Nf3 {[%clk 0:00:51.4]} 21... Bxh2+ {[%clk 0:01:57.2]} 22. Kf1
{[%clk 0:00:51.9]} 22... Qxe2+ {[%clk 0:01:53.7]} 23. Kxe2 {[%clk 0:00:51.9]}
23... Bf4 {[%clk 0:01:54.6]} 24. Rd1 {[%clk 0:00:48.9]} 24... Rb7 {[%clk
0:01:54]} 25. b3 {[%clk 0:00:48.7]} 25... g5 {[%clk 0:01:51]} 26. Rd5 {[%clk
0:00:41.3]} 26... c4 {[%clk 0:01:44.9]} 27. b4 {[%clk 0:00:39.2]} 27... g4
{[%clk 0:01:42.8]} 28. Nd4 {[%clk 0:00:36.8]} 28... Re7+ {[%clk 0:01:40.2]} 29.
Kd1 {[%clk 0:00:36.8]} 29... Re4 {[%clk 0:01:24.1]} 30. Rc5 {[%clk 0:00:29.7]}
30... g3 {[%clk 0:01:21.1]} 31. fxg3 {[%clk 0:00:27.6]} 31... Bxg3 {[%clk
0:01:21.9]} 32. Rxc4 {[%clk 0:00:24.4]} 32... Be5 {[%clk 0:01:19.8]} 33. Rc8+
{[%clk 0:00:21.9]} 33... Kg7 {[%clk 0:01:15.7]} 34. Nf3 {[%clk 0:00:22.8]} 34...
Bf6 {[%clk 0:01:11]} 35. a4 {[%clk 0:00:21.2]} 35... Rg4 {[%clk 0:01:11.1]} 36.
b5 {[%clk 0:00:16.8]} 36... axb5 {[%clk 0:00:57]} 37. axb5 {[%clk 0:00:16.1]}
37... Rxg2 {[%clk 0:00:56.4]} 38. Kc1 {[%clk 0:00:12.7]} 38... Rg3 {[%clk
0:00:52.8]} 39. Nd4 {[%clk 0:00:08.4]} 39... Bxd4 {[%clk 0:00:38.5]} 40. cxd4
{[%clk 0:00:09.3]} 40... Rb3 {[%clk 0:00:34.3]} 41. Rc5 {[%clk 0:00:09.1]} 41...
Kf6 {[%clk 0:00:31.8]} 42. Kc2 {[%clk 0:00:08.9]} 42... Rg3 {[%clk 0:00:28.8]}
43. b6 {[%clk 0:00:08]} 43... Rg8 {[%clk 0:00:26.9]} 44. b7 {[%clk 0:00:07.4]}
44... Rb8 {[%clk 0:00:24.1]} 45. Rb5 {[%clk 0:00:07.9]} 45... Ke6 {[%clk
0:00:20]} 46. Kd3 {[%clk 0:00:07.6]} 46... Kd6 {[%clk 0:00:20]} 47. Ke4 {[%clk
0:00:05.3]} 47... Kc6 {[%clk 0:00:20.3]} 48. Rh5 {[%clk 0:00:04.9]} 48... Rxb7
{[%clk 0:00:19.9]} 49. Rxh6+ {[%clk 0:00:05.4]} 49... Kd7 {[%clk 0:00:20.3]} 50.
Rf6 {[%clk 0:00:05.8]} 50... Ke7 {[%clk 0:00:20.6]} 51. Rc6 {[%clk 0:00:06.3]}
51... Rb1 {[%clk 0:00:20.6]} 52. Rc7+ {[%clk 0:00:06.2]} 52... Kf8 {[%clk
0:00:20.4]} 53. Ra7 {[%clk 0:00:06.7]} 53... Re1+ {[%clk 0:00:19.9]} 54. Kd5
{[%clk 0:00:05.1]} 54... f5 {[%clk 0:00:19.9]} 55. Ra8+ {[%clk 0:00:04.5]} 55...
Kg7 {[%clk 0:00:19.9]} 56. Ra6 {[%clk 0:00:05.3]} 56... f4 {[%clk 0:00:19.7]}
57. Rd6 {[%clk 0:00:04.7]} 57... f3 {[%clk 0:00:19.3]} 58. Ra6 {[%clk
0:00:04.7]} 58... f2 {[%clk 0:00:19]} 59. Ra7+ {[%clk 0:00:05.4]} 59... Kg6
{[%clk 0:00:18.9]} 60. Ra6+ {[%clk 0:00:05.9]} 60... Kg5 {[%clk 0:00:19.1]} 61.
Ra8 {[%clk 0:00:05.7]} 61... f1=Q {[%clk 0:00:19.2]} 0-1

[Event "*** SCC Grand Prix: Titled Tuesday Blitz"]
[Site "Chess.com"]
[Date "2020.10.06"]
[Round "5"]
[White "Butterfly"]
[Black "louis198"]
[Result "0-1"]
[WhiteElo "2406"]
[BlackElo "2572"]
[TimeControl "180+1"]
[EndTime "10:58:02 PDT"]
[Termination "louis198 won by checkmate"]

1. d4 {[%clk 0:03:00.9]} 1... c5 {[%clk 0:02:58.7]} 2. d5 {[%clk 0:03:00.1]}
2... d6 {[%clk 0:02:58.5]} 3. Nc3 {[%clk 0:02:59.3]} 3... g6 {[%clk 0:02:58.1]}
4. e4 {[%clk 0:02:58.8]} 4... Bg7 {[%clk 0:02:58.7]} 5. Bb5+ {[%clk 0:02:57.8]}
5... Bd7 {[%clk 0:02:58.9]} 6. a4 {[%clk 0:02:54.8]} 6... a6 {[%clk 0:02:58.9]}
7. Bc4 {[%clk 0:02:52.7]} 7... Nf6 {[%clk 0:02:59]} 8. h3 {[%clk 0:02:49.4]}
8... O-O {[%clk 0:02:58.3]} 9. Nf3 {[%clk 0:02:49.8]} 9... Be8 {[%clk
0:02:58.7]} 10. O-O {[%clk 0:02:49.1]} 10... Nbd7 {[%clk 0:02:59.3]} 11. Be3
{[%clk 0:02:45.2]} 11... Rc8 {[%clk 0:02:46.2]} 12. Qd2 {[%clk 0:02:40.5]} 12...
Ne5 {[%clk 0:02:46.2]} 13. Nxe5 {[%clk 0:02:33.6]} 13... dxe5 {[%clk 0:02:47.1]}
14. f4 {[%clk 0:02:32.5]} 14... exf4 {[%clk 0:02:46.3]} 15. Bxf4 {[%clk
0:02:32]} 15... Nh5 {[%clk 0:02:46.5]} 16. Bh6 {[%clk 0:02:24.5]} 16... Bd4+
{[%clk 0:02:21.6]} 17. Be3 {[%clk 0:02:19.8]} 17... Ng3 {[%clk 0:02:03.1]} 18.
Rf4 {[%clk 0:01:56.3]} 18... Qd6 {[%clk 0:01:58.8]} 19. Qf2 {[%clk 0:01:44.1]}
19... b5 {[%clk 0:01:17.2]} 20. axb5 {[%clk 0:01:41.6]} 20... axb5 {[%clk
0:01:17.6]} 21. Nxb5 {[%clk 0:01:30.2]} 21... Bxb5 {[%clk 0:01:14.8]} 22. Bxb5
{[%clk 0:01:30.1]} 22... Rb8 {[%clk 0:01:03.9]} 23. Bc4 {[%clk 0:01:11.2]} 23...
Be5 {[%clk 0:00:48.7]} 24. Bxc5 {[%clk 0:01:07.3]} 24... Qc7 {[%clk 0:00:45]}
25. Ra7 {[%clk 0:00:39.7]} 25... Rb7 {[%clk 0:00:13.6]} 26. Rxb7 {[%clk
0:00:38.6]} 26... Qxb7 {[%clk 0:00:14.5]} 27. Rg4 {[%clk 0:00:34.6]} 27... Nh5
{[%clk 0:00:12.4]} 28. b4 {[%clk 0:00:32]} 28... Ra8 {[%clk 0:00:11.8]} 29. g3
{[%clk 0:00:25.6]} 29... Ra1+ {[%clk 0:00:11.4]} 30. Kg2 {[%clk 0:00:25.8]}
30... Qc7 {[%clk 0:00:06.5]} 31. d6 {[%clk 0:00:12.9]} 31... exd6 {[%clk
0:00:06.6]} 32. Bd4 {[%clk 0:00:12.9]} 32... Qxc4 {[%clk 0:00:03.4]} 33. Bxa1
{[%clk 0:00:12.3]} 33... Bxa1 {[%clk 0:00:04.2]} 34. e5 {[%clk 0:00:11.7]} 34...
Qc6+ {[%clk 0:00:04.3]} 35. Kh2 {[%clk 0:00:10.5]} 35... Bxe5 {[%clk 0:00:04]}
36. c4 {[%clk 0:00:10.8]} 36... Nxg3 {[%clk 0:00:03.3]} 37. Rxg3 {[%clk
0:00:10.4]} 37... Bxg3+ {[%clk 0:00:03.9]} 38. Kxg3 {[%clk 0:00:10.8]} 38...
Qxc4 {[%clk 0:00:04.8]} 39. Qd2 {[%clk 0:00:10.1]} 39... Qb3+ {[%clk 0:00:05.1]}
40. Kg2 {[%clk 0:00:09.1]} 40... d5 {[%clk 0:00:06]} 41. Qd4 {[%clk 0:00:09.2]}
41... h5 {[%clk 0:00:05.2]} 42. Qc5 {[%clk 0:00:08.5]} 42... Qb2+ {[%clk
0:00:03.4]} 43. Kf3 {[%clk 0:00:07.8]} 43... d4 {[%clk 0:00:04.3]} 44. b5 {[%clk
0:00:07.3]} 44... d3 {[%clk 0:00:04.7]} 45. b6 {[%clk 0:00:07]} 45... Qe2+
{[%clk 0:00:04.8]} 46. Kf4 {[%clk 0:00:06.7]} 46... d2 {[%clk 0:00:05.4]} 47. b7
{[%clk 0:00:03]} 47... Qh2+ {[%clk 0:00:06.1]} 48. Ke3 {[%clk 0:00:02.3]} 48...
d1=Q {[%clk 0:00:06.7]} 49. Qc8+ {[%clk 0:00:02.3]} 49... Kh7 {[%clk 0:00:07.3]}
50. b8=Q {[%clk 0:00:01.8]} 50... Qdd2+ {[%clk 0:00:07.8]} 51. Ke4 {[%clk
0:00:02]} 51... Qhe2# {[%clk 0:00:08.3]} 0-1

[Event "*** SCC Grand Prix: Titled Tuesday Blitz"]
[Site "Chess.com"]
[Date "2020.10.06"]
[Round "5"]
[White "nurgyulsalimova"]
[Black "youngKID"]
[Result "0-1"]
[WhiteElo "2608"]
[BlackElo "2797"]
[TimeControl "180+1"]
[EndTime "10:58:06 PDT"]
[Termination "youngKID won by resignation"]

1. d4 {[%clk 0:03:00.9]} 1... Nf6 {[%clk 0:02:59.5]} 2. Nf3 {[%clk 0:02:59.7]}
2... g6 {[%clk 0:02:59]} 3. c4 {[%clk 0:02:55.3]} 3... Bg7 {[%clk 0:02:58.9]} 4.
Nc3 {[%clk 0:02:55.5]} 4... O-O {[%clk 0:02:59]} 5. g3 {[%clk 0:02:55.8]} 5...
d6 {[%clk 0:02:54.9]} 6. Bg2 {[%clk 0:02:54.9]} 6... Nc6 {[%clk 0:02:48.5]} 7.
O-O {[%clk 0:02:49.1]} 7... e5 {[%clk 0:02:38.7]} 8. dxe5 {[%clk 0:02:16.3]}
8... dxe5 {[%clk 0:02:39.6]} 9. Bg5 {[%clk 0:02:16.9]} 9... Be6 {[%clk
0:02:21.8]} 10. Nd2 {[%clk 0:02:08.5]} 10... h6 {[%clk 0:02:05.4]} 11. Be3
{[%clk 0:02:04.1]} 11... Nd4 {[%clk 0:01:58]} 12. h3 {[%clk 0:01:41.5]} 12...
Qd7 {[%clk 0:01:41.4]} 13. Kh2 {[%clk 0:01:41]} 13... Rad8 {[%clk 0:01:37.1]}
14. Nf3 {[%clk 0:01:10.8]} 14... Nxf3+ {[%clk 0:01:09.7]} 15. Bxf3 {[%clk
0:01:10.9]} 15... Bxh3 {[%clk 0:01:08]} 16. Qxd7 {[%clk 0:01:10.5]} 16... Bxd7
{[%clk 0:01:08.9]} 17. Bxa7 {[%clk 0:01:02.7]} 17... b6 {[%clk 0:00:58.1]} 18.
c5 {[%clk 0:01:02.5]} 18... Bf5 {[%clk 0:00:30.3]} 19. cxb6 {[%clk 0:00:57.2]}
19... cxb6 {[%clk 0:00:29.9]} 20. Bxb6 {[%clk 0:00:56.5]} 20... Rb8 {[%clk
0:00:29.7]} 21. Bc5 {[%clk 0:00:51.5]} 21... Rfc8 {[%clk 0:00:29.3]} 22. Bd6
{[%clk 0:00:19.5]} 22... Rxb2 {[%clk 0:00:27.9]} 23. Bxe5 {[%clk 0:00:18.3]}
23... Rc2 {[%clk 0:00:20.6]} 24. Bxf6 {[%clk 0:00:05.4]} 24... Bxf6 {[%clk
0:00:17.8]} 25. Nd5 {[%clk 0:00:06.3]} 25... Bxa1 {[%clk 0:00:15.2]} 26. Ne7+
{[%clk 0:00:06.8]} 26... Kg7 {[%clk 0:00:14.7]} 27. Nxc8 {[%clk 0:00:07.2]}
27... Rxa2 {[%clk 0:00:11.3]} 28. Nd6 {[%clk 0:00:05.7]} 28... Be6 {[%clk
0:00:11.5]} 29. Ne4 {[%clk 0:00:04.3]} 29... Bd4 {[%clk 0:00:10.6]} 30. Rd1
{[%clk 0:00:03.7]} 30... Ba7 {[%clk 0:00:10.3]} 31. Kg2 {[%clk 0:00:04.1]} 31...
Ra5 {[%clk 0:00:05.4]} 32. Nd2 {[%clk 0:00:04.5]} 32... g5 {[%clk 0:00:04]} 33.
Nf1 {[%clk 0:00:04.8]} 33... g4 {[%clk 0:00:04.1]} 34. Be4 {[%clk 0:00:05.4]}
34... Re5 {[%clk 0:00:04.2]} 35. f3 {[%clk 0:00:03.9]} 35... f5 {[%clk
0:00:03.4]} 36. Bb7 {[%clk 0:00:02.5]} 36... Rxe2+ {[%clk 0:00:02.6]} 37. Kh1
{[%clk 0:00:03.2]} 37... h5 {[%clk 0:00:02.2]} 38. fxg4 {[%clk 0:00:03.4]} 38...
hxg4 {[%clk 0:00:02.6]} 39. Nh2 {[%clk 0:00:03.9]} 39... Bc5 {[%clk 0:00:02.4]}
40. Nf1 {[%clk 0:00:04.2]} 40... Kf6 {[%clk 0:00:02.8]} 41. Bg2 {[%clk
0:00:04.8]} 41... Be7 {[%clk 0:00:02.7]} 42. Rd2 {[%clk 0:00:05.3]} 42... Re5
{[%clk 0:00:02.5]} 43. Kg1 {[%clk 0:00:05.6]} 43... Re1 {[%clk 0:00:02.6]} 44.
Kh2 {[%clk 0:00:06.1]} 44... Ra1 {[%clk 0:00:03.2]} 45. Rf2 {[%clk 0:00:06.5]}
45... Bc5 {[%clk 0:00:03.4]} 46. Rf4 {[%clk 0:00:06.7]} 46... Bd6 {[%clk
0:00:02.8]} 47. Rf2 {[%clk 0:00:07]} 47... Ra3 {[%clk 0:00:03]} 48. Bc6 {[%clk
0:00:05.9]} 48... Bc4 {[%clk 0:00:02.9]} 49. Kg2 {[%clk 0:00:06.1]} 49... Bxf1+
{[%clk 0:00:03]} 50. Rxf1 {[%clk 0:00:07]} 50... Rxg3+ {[%clk 0:00:03.7]} 51.
Kf2 {[%clk 0:00:07.7]} 51... Rc3 {[%clk 0:00:03.5]} 52. Bg2 {[%clk 0:00:08.4]}
52... Bc5+ {[%clk 0:00:03.8]} 53. Ke2 {[%clk 0:00:07]} 53... Rc2+ {[%clk
0:00:03.9]} 54. Kd3 {[%clk 0:00:06.5]} 54... Rxg2 {[%clk 0:00:04.8]} 0-1

[Event "*** SCC Grand Prix: Titled Tuesday Blitz"]
[Site "Chess.com"]
[Date "2020.10.06"]
[Round "5"]
[White "Alexander_Donchenko"]
[Black "doons21"]
[Result "1-0"]
[WhiteElo "2767"]
[BlackElo "2604"]
[TimeControl "180+1"]
[EndTime "10:58:07 PDT"]
[Termination "Alexander_Donchenko won on time"]

1. Nf3 {[%clk 0:03:00.9]} 1... Nf6 {[%clk 0:02:59.7]} 2. g3 {[%clk 0:03:01.4]}
2... g6 {[%clk 0:03:00.1]} 3. Bg2 {[%clk 0:03:02.3]} 3... Bg7 {[%clk 0:03:00.7]}
4. O-O {[%clk 0:03:03]} 4... O-O {[%clk 0:03:01.4]} 5. d4 {[%clk 0:03:03.9]}
5... d6 {[%clk 0:03:01.4]} 6. b3 {[%clk 0:03:04.3]} 6... a5 {[%clk 0:02:50.3]}
7. a4 {[%clk 0:03:03.9]} 7... Ne4 {[%clk 0:02:42.9]} 8. Bb2 {[%clk 0:03:03.1]}
8... c5 {[%clk 0:02:43]} 9. Nbd2 {[%clk 0:03:02.5]} 9... Nxd2 {[%clk 0:02:42.5]}
10. Qxd2 {[%clk 0:03:03.4]} 10... Nc6 {[%clk 0:02:38.7]} 11. Rab1 {[%clk
0:02:56.9]} 11... Qb6 {[%clk 0:02:30.5]} 12. d5 {[%clk 0:02:50.5]} 12... Bxb2
{[%clk 0:02:21.5]} 13. Rxb2 {[%clk 0:02:51.4]} 13... Nb4 {[%clk 0:02:09.9]} 14.
c3 {[%clk 0:02:40]} 14... Na6 {[%clk 0:02:09.3]} 15. Qh6 {[%clk 0:02:37.5]}
15... f6 {[%clk 0:02:08.3]} 16. c4 {[%clk 0:02:34.3]} 16... Rf7 {[%clk
0:01:46.6]} 17. h4 {[%clk 0:02:26.5]} 17... Bg4 {[%clk 0:01:45]} 18. Nh2 {[%clk
0:02:26.3]} 18... Bd7 {[%clk 0:01:44.7]} 19. e4 {[%clk 0:02:23.6]} 19... Nb4
{[%clk 0:01:43.8]} 20. Rd2 {[%clk 0:02:12.1]} 20... Qd8 {[%clk 0:01:38.2]} 21.
Qe3 {[%clk 0:02:09.4]} 21... Qf8 {[%clk 0:01:34.9]} 22. f4 {[%clk 0:02:08.4]}
22... Qg7 {[%clk 0:01:33.6]} 23. Re1 {[%clk 0:02:02.3]} 23... g5 {[%clk
0:01:12.9]} 24. fxg5 {[%clk 0:01:55]} 24... fxg5 {[%clk 0:01:13.8]} 25. Qxg5
{[%clk 0:01:44.6]} 25... Qxg5 {[%clk 0:01:14]} 26. hxg5 {[%clk 0:01:45.5]} 26...
Rg7 {[%clk 0:01:12.1]} 27. Nf3 {[%clk 0:01:40.8]} 27... Bg4 {[%clk 0:01:12.3]}
28. e5 {[%clk 0:01:40.2]} 28... Bxf3 {[%clk 0:01:12.7]} 29. Bxf3 {[%clk
0:01:41.1]} 29... Rxg5 {[%clk 0:01:12.9]} 30. exd6 {[%clk 0:01:41.3]} 30... exd6
{[%clk 0:01:07.1]} 31. Kg2 {[%clk 0:01:40.6]} 31... Rf8 {[%clk 0:01:05.5]} 32.
Re6 {[%clk 0:01:36.7]} 32... Rg6 {[%clk 0:01:00.6]} 33. Be4 {[%clk 0:01:33.3]}
33... Rgf6 {[%clk 0:00:57.6]} 34. Re2 {[%clk 0:01:25.6]} 34... Kg7 {[%clk
0:00:54.7]} 35. g4 {[%clk 0:01:19.6]} 35... h6 {[%clk 0:00:52.1]} 36. Bf5 {[%clk
0:01:17.5]} 36... h5 {[%clk 0:00:43.6]} 37. Rxf6 {[%clk 0:01:16.4]} 37... Rxf6
{[%clk 0:00:43.8]} 38. Re7+ {[%clk 0:01:16.3]} 38... Kh6 {[%clk 0:00:40.3]} 39.
Rxb7 {[%clk 0:01:15.5]} 39... hxg4 {[%clk 0:00:40.3]} 40. Bxg4 {[%clk
0:01:12.8]} 40... Nd3 {[%clk 0:00:40.5]} 41. Rb5 {[%clk 0:01:03.4]} 41... Kg5
{[%clk 0:00:39.8]} 42. Be6 {[%clk 0:00:30.3]} 42... Kf4 {[%clk 0:00:37.9]} 43.
Rxa5 {[%clk 0:00:25.8]} 43... Rg6+ {[%clk 0:00:38.3]} 44. Kf1 {[%clk 0:00:21]}
44... Rh6 {[%clk 0:00:23.2]} 45. Ra7 {[%clk 0:00:19.5]} 45... Rh1+ {[%clk
0:00:19.9]} 46. Kg2 {[%clk 0:00:19.7]} 46... Rb1 {[%clk 0:00:20.4]} 47. Rb7
{[%clk 0:00:18.7]} 47... Ke3 {[%clk 0:00:19.2]} 48. a5 {[%clk 0:00:18.2]} 48...
Nf4+ {[%clk 0:00:19.6]} 49. Kg3 {[%clk 0:00:15.2]} 49... Rg1+ {[%clk 0:00:19.4]}
50. Kh4 {[%clk 0:00:15.3]} 50... Kf3 {[%clk 0:00:18.3]} 51. a6 {[%clk
0:00:14.8]} 51... Rh1+ {[%clk 0:00:18.3]} 52. Kg5 {[%clk 0:00:14.9]} 52... Rg1+
{[%clk 0:00:16.9]} 53. Kf6 {[%clk 0:00:14.7]} 53... Ra1 {[%clk 0:00:16.1]} 54.
a7 {[%clk 0:00:14.6]} 54... Ke4 {[%clk 0:00:15.7]} 55. Bd7 {[%clk 0:00:14.2]}
55... Nd3 {[%clk 0:00:15.5]} 56. Bc6 {[%clk 0:00:13]} 56... Rf1+ {[%clk
0:00:16.4]} 57. Ke7 {[%clk 0:00:12.9]} 57... Ra1 {[%clk 0:00:13.1]} 58. Rc7
{[%clk 0:00:12]} 58... Ne5 {[%clk 0:00:11.5]} 59. a8=Q {[%clk 0:00:11.7]} 59...
Rxa8 {[%clk 0:00:08.7]} 60. Bxa8 {[%clk 0:00:12.6]} 60... Kd4 {[%clk 0:00:07]}
61. Kxd6 {[%clk 0:00:12.7]} 61... Nd3 {[%clk 0:00:07.5]} 62. Ke7 {[%clk
0:00:10.6]} 1-0